lending/lending_fUSD_20240824
["ID","MTS","AMOUNT","RATE_DAILY","PERIOD"]
[335856985,1724535039080,-500.0,0.00010958,2]
[335856987,1724535039090,-500.0,0.00010958,2]
[335856989,1724535039099,-500.0,0.00010958,2]
[335856991,1724535039108,-465.22919125,0.00010958,2]
[335856993,1724535039117,-522.76547017,0.00010958,2]
[335856995,1724535039127,-274.89442741,0.00010958,2]
[335856997,1724535039137,-180.13,0.00010959,2]
[335856999,1724535039146,-164.38,0.00010959,2]
[335857001,1724535039155,-250.0,0.00010959,2]
[335857003,1724535039164,-2000.0,0.00010959,2]
[335857005,1724535039174,-164.37,0.00010959,2]
[335857007,1724535039184,-150.75,0.0001098,2]
[335857009,1724535039193,-303.86264504,0.00010989,2]
[335857011,1724535039203,-558.18787033,0.00010989,2]
[335857013,1724535039212,-500.0,0.00010989,2]
[335857015,1724535039222,-500.0,0.00010989,2]
[335857017,1724535039232,-500.0,0.00010989,2]
[335857019,1724535039241,-261.08,0.00010989,2]
[335857021,1724535039251,-500.0,0.00010989,2]
[335857023,1724535039263,-500.0,0.00010989,2]
[335857025,1724535039272,-1218.93877288,0.00010989,2]
[335857027,1724535039281,-150.75,0.0001099,2]
[335857029,1724535039290,-150.75,0.0001099,2]
[335857031,1724535039300,-511650.81814634,0.0001099,2]
[335857033,1724535039312,-10060.34373733,0.0001099,2]
[335857035,1724535039321,-150.75,0.0001099,2]
[335857037,1724535039330,-150.75,0.0001099,2]
[335857039,1724535039341,-150.75,0.0001099,2]
[335857041,1724535039351,-150.75,0.0001099,2]
[335857043,1724535039360,-150.75,0.0001099,2]
[335857045,1724535039369,-150.75,0.0001099,2]
[335857047,1724535039379,-150.75,0.0001099,2]
[335857049,1724535039389,-150.75,0.0001099,2]
[335857051,1724535039400,-150.75,0.0001099,2]
[335857053,1724535039409,-150.75,0.0001099,2]
[335857055,1724535039418,-150.75,0.0001099,2]
[335857057,1724535039428,-150.75,0.0001099,2]
[335857059,1724535039437,-150.75,0.0001099,2]
[335857061,1724535039446,-150.75,0.0001099,2]
[335857063,1724535039455,-150.75,0.0001099,2]
[335857065,1724535039464,-150.75,0.0001099,2]
[335857067,1724535039474,-150.75,0.0001099,2]
[335857069,1724535039484,-2284.27454592,0.00010997,2]
[335857071,1724535039493,-4568.54909184,0.00010997,2]
[335857072,1724535039502,-500.0,0.00010999,2]
[335857075,1724535039512,-500.0,0.00010999,2]
[335857077,1724535039522,-500.0,0.00010999,2]
[335857078,1724535039531,-500.0,0.00010999,2]
[335857080,1724535039541,-500.0,0.00010999,2]
[335857082,1724535039550,-500.0,0.00010999,2]
[335857084,1724535039560,-500.0,0.00010999,2]
[335857086,1724535039570,-500.0,0.00010999,2]
[335857088,1724535039578,-500.0,0.00010999,2]
[335857090,1724535039588,-500.0,0.00010999,2]
[335857092,1724535039597,-277.75836936,0.00010999,2]
[335857094,1724535039607,-605.5,0.00010999,2]
[335857096,1724535039617,-605.5,0.00010999,2]
[335857098,1724535039626,-605.5,0.00010999,2]
[335857100,1724535039635,-605.5,0.00010999,2]
[335857102,1724535039645,-605.5,0.00010999,2]
[335857104,1724535039655,-605.5,0.00010999,2]
[335857106,1724535039664,-605.5,0.00010999,2]
[335857108,1724535039674,-605.5,0.00010999,2]
[335857110,1724535039683,-605.5,0.00010999,2]
[335857112,1724535039693,-605.5,0.00010999,2]
[335857114,1724535039702,-605.5,0.00010999,2]
[335857116,1724535039711,-605.5,0.00010999,2]
[335857118,1724535039720,-605.5,0.00010999,2]
[335857120,1724535039730,-605.5,0.00010999,2]
[335857122,1724535039741,-605.5,0.00010999,2]
[335857124,1724535039750,-605.5,0.00010999,2]
[335857126,1724535039759,-605.5,0.00010999,2]
[335857128,1724535039769,-605.5,0.00010999,2]
[335857130,1724535039779,-605.5,0.00010999,2]
[335857132,1724535039788,-605.5,0.00010999,2]
[335857134,1724535039798,-605.5,0.00010999,2]
[335857136,1724535039807,-605.5,0.00010999,2]
[335857138,1724535039817,-605.5,0.00010999,2]
[335857140,1724535039827,-605.70778922,0.00010999,2]
[335857142,1724535039836,-500.0,0.00010999,2]
[335857144,1724535039846,-500.0,0.00010999,2]
[335857146,1724535039856,-500.0,0.00010999,2]
[335857148,1724535039866,-269.22723918,0.00010999,2]
[335857150,1724535039876,-500.0,0.00010999,2]
[335857152,1724535039885,-500.0,0.00010999,2]
[335857154,1724535039895,-500.0,0.00010999,2]
[335857156,1724535039904,-500.0,0.00010999,2]
[335857158,1724535039913,-500.0,0.00010999,2]
[335857160,1724535039922,-500.0,0.00010999,2]
[335857162,1724535039932,-500.0,0.00010999,2]
[335857164,1724535039941,-500.0,0.00010999,2]
[335857167,1724535039950,-500.0,0.00010999,2]
[335857169,1724535039959,-500.0,0.00010999,2]
[335857171,1724535039969,-500.0,0.00010999,2]
[335857173,1724535039978,-500.0,0.00010999,2]
[335857175,1724535039987,-224.3809277,0.00010999,2]
[335857177,1724535039996,-500.0,0.00010999,2]
[335857179,1724535040006,-500.0,0.00010999,2]
[335857181,1724535040014,-500.0,0.00010999,2]
[335857182,1724535040023,-500.0,0.00010999,2]
[335857184,1724535040033,-500.0,0.00010999,2]
[335857186,1724535040042,-500.0,0.00010999,2]
[335857188,1724535040050,-500.0,0.00010999,2]
[335857190,1724535040060,-500.0,0.00010999,2]
[335857192,1724535040069,-500.0,0.00010999,2]
[335857194,1724535040079,-500.0,0.00010999,2]
[335857196,1724535040088,-500.0,0.00010999,2]
[335857198,1724535040098,-500.0,0.00010999,2]
[335857200,1724535040107,-500.0,0.00010999,2]
[335857201,1724535040117,-500.0,0.00010999,2]
[335857203,1724535040126,-500.0,0.00010999,2]
[335857205,1724535040135,-500.0,0.00010999,2]
[335857207,1724535040144,-500.0,0.00010999,2]
[335857209,1724535040153,-500.0,0.00010999,2]
[335857211,1724535040162,-500.0,0.00010999,2]
[335857213,1724535040171,-500.0,0.00010999,2]
[335857215,1724535040180,-500.0,0.00010999,2]
[335857217,1724535040190,-348.33,0.00010999,2]
[335857219,1724535040199,-500.0,0.00010999,2]
[335857221,1724535040208,-500.0,0.00010999,2]
[335857223,1724535040217,-500.0,0.00010999,2]
[335857225,1724535040226,-500.0,0.00010999,2]
[335857227,1724535040235,-500.0,0.00010999,2]
[335857229,1724535040244,-500.0,0.00010999,2]
[335857231,1724535040253,-500.0,0.00010999,2]
[335857232,1724535040265,-500.0,0.00010999,2]
[335857234,1724535040274,-500.0,0.00010999,2]
[335857236,1724535040282,-500.0,0.00010999,2]
[335857238,1724535040291,-500.0,0.00010999,2]
[335857240,1724535040301,-500.0,0.00010999,2]
[335857242,1724535040310,-500.0,0.00010999,2]
[335857244,1724535040320,-500.0,0.00010999,2]
[335857247,1724535040332,-500.0,0.00010999,2]
[335857248,1724535040342,-500.0,0.00010999,2]
[335857250,1724535040352,-500.0,0.00010999,2]
[335857252,1724535040361,-500.0,0.00010999,2]
[335857254,1724535040370,-500.0,0.00010999,2]
[335857256,1724535040379,-500.0,0.00010999,2]
[335857258,1724535040389,-554.8459445,0.00010999,2]
[335857260,1724535040399,-500.0,0.00010999,2]
[335857262,1724535040408,-500.0,0.00010999,2]
[335857264,1724535040418,-500.0,0.00010999,2]
[335857266,1724535040428,-500.0,0.00010999,2]
[335857268,1724535040437,-557.32,0.00010999,2]
[335857270,1724535040446,-500.0,0.00010999,2]
[335857272,1724535040455,-291.34361406,0.00010999,2]
[335857281,1724535040525,-208.65638594,0.00010999,2]
[335857283,1724535040535,-500.0,0.00010999,2]
[335857284,1724535040544,-500.0,0.00010999,2]
[335857286,1724535040553,-500.0,0.00010999,2]
[335857288,1724535040562,-500.0,0.00010999,2]
[335857290,1724535040571,-500.0,0.00010999,2]
[335857292,1724535040580,-500.0,0.00010999,2]
[335857294,1724535040590,-500.0,0.00010999,2]
[335857296,1724535040600,-277.12,0.00010999,2]
[335857298,1724535040609,-500.0,0.00010999,2]
[335857300,1724535040618,-500.0,0.00010999,2]
[335857302,1724535040627,-500.0,0.00010999,2]
[335857304,1724535040636,-500.0,0.00010999,2]
[335857306,1724535040645,-500.0,0.00010999,2]
[335857308,1724535040654,-126.47519968,0.00010999,2]
[335857310,1724535040666,-373.52480032,0.00010999,2]
[335857312,1724535040675,-264.72368521,0.00010999,2]
[335857315,1724535040687,-176.5356252,0.00010999,2]
[335857317,1724535040697,-500.0,0.00010999,2]
[335857319,1724535040706,-500.0,0.00010999,2]
[335857321,1724535040715,-500.0,0.00010999,2]
[335857323,1724535040724,-500.0,0.00010999,2]
[335857325,1724535040733,-500.0,0.00010999,2]
[335857327,1724535040742,-500.0,0.00010999,2]
[335857329,1724535040751,-500.0,0.00010999,2]
[335857331,1724535040760,-500.0,0.00010999,2]
[335857333,1724535040770,-500.0,0.00010999,2]
[335857335,1724535040780,-500.0,0.00010999,2]
[335857337,1724535040789,-500.0,0.00010999,2]
[335857339,1724535040798,-500.0,0.00010999,2]
[335857341,1724535040807,-252.14869432,0.00010999,2]
[335857343,1724535040816,-365.6,0.00010999,2]
[335857345,1724535040826,-492.18,0.00010999,2]
[335857347,1724535040835,-500.0,0.00010999,2]
[335857349,1724535040844,-190.58,0.00010999,2]
[335857351,1724535040853,-500.0,0.00010999,2]
[335857352,1724535040862,-500.0,0.00010999,2]
[335857355,1724535040872,-500.0,0.00010999,2]
[335857357,1724535040882,-500.0,0.00010999,2]
[335857359,1724535040891,-500.0,0.00010999,2]
[335857371,1724535041053,-500.0,0.00010999,2]
[335857372,1724535041065,-500.0,0.00010999,2]
[335857373,1724535041074,-500.0,0.00010999,2]
[335857374,1724535041083,-500.0,0.00010999,2]
[335857375,1724535041092,-500.0,0.00010999,2]
[335857376,1724535041101,-500.0,0.00010999,2]
[335857377,1724535041110,-500.0,0.00010999,2]
[335857378,1724535041120,-500.0,0.00010999,2]
[335857379,1724535041129,-500.0,0.00010999,2]
[335857380,1724535041138,-500.0,0.00010999,2]
[335857381,1724535041147,-500.0,0.00010999,2]
[335857382,1724535041156,-500.0,0.00010999,2]
[335857383,1724535041166,-500.0,0.00010999,2]
[335857384,1724535041175,-290.2,0.00010999,2]
[335857385,1724535041184,-187.74103085,0.00010999,2]
[335857386,1724535041193,-630.0,0.00010999,2]
[335857387,1724535041202,-67812.28983747,0.00011,2]
[335857402,1724535041363,-155.0,0.00010471,2]
[335857404,1724535041372,-1206.0,0.0001082,2]
[335857406,1724535041382,-11560.63839813,0.00011,2]
[335857409,1724535041393,-550.1564575,0.00011,2]
[335857411,1724535041404,-600.0,0.00011,2]
[335857413,1724535041415,-983.78113628,0.00011,2]
[335857415,1724535041426,-760.32601188,0.00011,2]
[335857417,1724535041437,-372.50946649,0.00011,2]
[335857419,1724535041459,-1224.96970469,0.00011,2]
[335857422,1724535041474,-5029.4305011,0.00011,2]
[335857427,1724535041516,-8267.37058473,0.00011,2]
[335857606,1724535043207,-68768.91412927,0.00011,2]
[335857627,1724535043374,-6802.33893354,0.00011,2]
[335857634,1724535043434,-524.26,0.00011,2]
[335857641,1724535043495,-501.39293075,0.00011,2]
[335857643,1724535043507,-253.88923684,0.00011,2]
[335857645,1724535043519,-17268.42652662,0.00011,2]
[335857651,1724535043563,-451.22072221,0.00011,2]
[335857653,1724535043574,-7420.16471275,0.00011,2]
[335857655,1724535043585,-91159.20614069,0.00011,2]
[335857657,1724535043596,-457.46955249,0.00011,2]
[335857659,1724535043608,-6950.22205377,0.00011,2]
[335857909,1724535046122,-320.98,0.00011,2]
[335857916,1724535046184,-396976.55141468,0.00011,2]
[335857921,1724535046251,-120613.61172914,0.00011,2]
[335857925,1724535046432,-4778.87436627,0.00011,2]
[335858870,1724535506716,5000.0,0.00027,120]
[335858871,1724535516768,254.74,8.219e-05,2]
[335858872,1724535589377,186.49413753,9.962e-05,2]
[335858873,1724535628597,171.53,0.0001001,2]
[335858883,1724535792564,250.0,9.965e-05,2]
[335858884,1724535799616,1050.0,0.0001,2]
[335858885,1724535914345,150.0,9.888e-05,2]
[335858886,1724535949628,7907.65,9.95e-05,2]
[335858887,1724535998111,255.76,8.219e-05,2]
[335858888,1724536072290,156.77939307,9.952e-05,2]
[335858889,1724536099958,176.99,9.957e-05,2]
[335858892,1724536114649,155.0,0.00010009,2]
[335858908,1724536169483,547.15346494,0.00010009,2]
[335858909,1724536174917,200.0,9.561e-05,2]
[335858910,1724536178577,330.34282033,0.00010009,2]
[335858911,1724536185175,155.0,0.00010009,2]
[335858912,1724536190351,207.46677344,0.00010009,2]
[335858913,1724536202527,150.0,0.00010009,2]
[335858914,1724536202709,150.0,0.00010009,2]
[335858915,1724536203359,151.46325954,0.00010009,2]
[335858916,1724536215169,155.0,0.00010009,2]
[335858917,1724536217221,23900.0,9.991e-05,2]
[335858918,1724536222298,431.37387087,0.00010009,2]
[335858930,1724536232358,-299.99,0.00010012,2]
[335858931,1724536232478,-700.01,0.00010012,2]
[335858932,1724536232488,-219.9835399,0.00010026,2]
[335858933,1724536232499,-306.54258702,0.00010026,2]
[335858934,1724536232508,-134.91663545,0.00010052,2]
[335858935,1724536232518,-1198.16775,0.00010052,2]
[335858943,1724536238456,-569.78816292,0.00010052,2]
[335858944,1724536238467,-306.53181999,0.00010052,2]
[335858945,1724536238521,-1063.21563164,0.00010052,2]
[335858946,1724536238530,-300.0,0.00010066,2]
[335858947,1724536238540,-218.42,0.00010097,2]
[335858948,1724536238551,-379.8986793,0.00010097,2]
[335858949,1724536238562,-460.4481801,0.00010097,2]
[335858950,1724536238571,-255.76,0.00010474,2]
[335858951,1724536238581,-155.0,0.00010799,2]
[335858952,1724536238591,-713.8,0.000108,2]
[335858953,1724536238601,-531.62,0.000108,2]
[335858954,1724536238610,-842.94,0.000108,2]
[335858955,1724536238621,-327.8,0.000108,2]
[335858956,1724536238630,-531.62,0.000108,2]
[335858957,1724536238639,-150.99,0.000108,2]
[335858958,1724536238650,-150.0,0.00010829,2]
[335858959,1724536238661,-221.0,0.0001083,2]
[335858960,1724536238672,-324.1907073,0.0001083,2]
[335858962,1724536238911,-36.0092927,0.0001083,2]
[335858963,1724536238922,-150.99,0.0001083,2]
[335858964,1724536238932,-188.19,0.00010887,2]
[335858965,1724536238941,-2744.82945872,0.00010899,2]
[335858966,1724536240363,-12136.82169959,0.00010899,2]
[335858968,1724536240372,-155.0,0.00010899,2]
[335858970,1724536240382,-88575.2499,0.000109,2]
[335858972,1724536240391,-900.4459,0.000109,2]
[335858974,1724536240400,-164.03405319,0.000109,2]
[335858975,1724536240409,-483.66,0.000109,2]
[335858976,1724536240419,-1917.0,0.0001092,2]
[335858977,1724536240429,-1544.0,0.0001092,2]
[335858978,1724536240438,-1258.0,0.0001092,2]
[335858979,1724536240447,-623.0,0.0001092,2]
[335858981,1724536240456,-447.0,0.0001092,2]
[335858982,1724536240465,-1138.0,0.0001092,2]
[335858983,1724536240475,-809.0,0.0001092,2]
[335858984,1724536240484,-150.0,0.0001092,2]
[335858985,1724536240494,-556.0,0.0001092,2]
[335858986,1724536240503,-150.0,0.0001092,2]
[335858987,1724536240516,-552.0,0.0001092,2]
[335858988,1724536240525,-1897.0,0.0001092,2]
[335858989,1724536240534,-1154.0,0.0001092,2]
[335858990,1724536240544,-3320.0,0.0001092,2]
[335858991,1724536240553,-248.0,0.0001092,2]
[335858992,1724536240562,-764.0,0.0001092,2]
[335858993,1724536240571,-3729.0,0.0001092,2]
[335858994,1724536240581,-757.64,0.0001092,2]
[335858995,1724536240590,-543.116,0.0001092,2]
[335858996,1724536240599,-847.438,0.0001092,2]
[335858997,1724536240609,-169.09,0.00010959,2]
[335858998,1724536240618,-250.0,0.00010959,2]
[335858999,1724536240628,-204.12,0.00010959,2]
[335859000,1724536240637,-599.6,0.00010959,2]
[335859001,1724536240646,-150.0,0.00010986,2]
[335859002,1724536240656,-500.0,0.00010989,2]
[335859003,1724536240665,-500.0,0.00010989,2]
[335859004,1724536240674,-155.0,0.00010989,2]
[335859005,1724536240685,-218.99372524,0.00010989,2]
[335859006,1724536240694,-150.76,0.0001099,2]
[335859007,1724536240703,-150.76,0.0001099,2]
[335859008,1724536240713,-150.76,0.0001099,2]
[335859009,1724536240723,-150.76,0.0001099,2]
[335859010,1724536240732,-150.76,0.0001099,2]
[335859011,1724536240742,-150.76,0.0001099,2]
[335859012,1724536240752,-150.76,0.0001099,2]
[335859013,1724536240762,-150.76,0.0001099,2]
[335859014,1724536240771,-150.76,0.0001099,2]
[335859015,1724536240781,-150.76,0.0001099,2]
[335859016,1724536240793,-150.76,0.0001099,2]
[335859017,1724536240803,-150.76,0.0001099,2]
[335859018,1724536240813,-150.76,0.0001099,2]
[335859019,1724536240823,-150.76,0.0001099,2]
[335859020,1724536240833,-3079.7895105,0.00010997,2]
[335859021,1724536240842,-527.67435678,0.00010999,2]
[335859022,1724536240851,-500.0,0.00010999,2]
[335859023,1724536240861,-457.40330995,0.00010999,2]
[335859024,1724536240871,-500.0,0.00010999,2]
[335859025,1724536240881,-500.0,0.00010999,2]
[335859026,1724536240890,-423.9718138,0.00010999,2]
[335859027,1724536240900,-500.0,0.00010999,2]
[335859028,1724536240910,-500.0,0.00010999,2]
[335859029,1724536240920,-500.0,0.00010999,2]
[335859030,1724536240929,-356.97697632,0.00010999,2]
[335859031,1724536240938,-500.0,0.00010999,2]
[335859032,1724536240948,-500.0,0.00010999,2]
[335859033,1724536240958,-355.30944871,0.00010999,2]
[335859034,1724536240967,-500.0,0.00010999,2]
[335859035,1724536240977,-500.0,0.00010999,2]
[335859036,1724536240987,-500.0,0.00010999,2]
[335859037,1724536240996,-500.0,0.00010999,2]
[335859038,1724536241006,-455.33496653,0.00010999,2]
[335859039,1724536241015,-439.58612824,0.00010999,2]
[335859040,1724536241025,-155.0,0.00010999,2]
[335859041,1724536241034,-3348.83570436,0.00010999,2]
[335859042,1724536241044,-672.0,0.00011,2]
[335859043,1724536241054,-241250.89819824,0.00011,2]
[335859044,1724536241063,-376899.28758973,0.00011,2]
[335859045,1724536241076,-6367.25475875,0.00011,2]
[335859046,1724536242864,-155.0,0.00010713,2]
[335859047,1724536242874,-155.0,0.00010899,2]
[335859048,1724536242883,-8630.94712161,0.00011,2]
[335859049,1724536242894,-99754.60108673,0.00011,2]
[335859050,1724536242905,-59972.97796053,0.00011,2]
[335859051,1724536242917,-12736.54400959,0.00011,2]
[335859052,1724536242927,-635.093,0.00011,2]
[335859053,1724536242938,-4153.22598848,0.00011,2]
[335859054,1724536242950,-10914.61157482,0.00011,2]
[335859055,1724536242961,-1246.27263832,0.00011,2]
[335859056,1724536242975,-331305.73332924,0.00011,2]
[335859057,1724536242986,-952.79557966,0.00011,2]
[335859058,1724536242998,-807.73443717,0.00011,2]
[335859059,1724536243045,-1840.0,0.00011,2]
[335859060,1724536243055,-500.0,0.00011,2]
[335859061,1724536243066,-683.98475264,0.00011,2]
[335859062,1724536243077,-7683.14958671,0.00011,2]
[335859063,1724536243088,-279.53048984,0.00011,2]
[335859064,1724536243099,-692.445,0.00011,2]
[335859065,1724536243110,-1353.83088325,0.00011,2]
[335859066,1724536243127,-1596.3,0.00011,2]
[335859067,1724536243143,-1244.6844767,0.00011,2]
[335859068,1724536243154,-12166.95600629,0.00011,2]
[335859069,1724536243165,-1130.54686907,0.00011,2]
[335859070,1724536243175,-384.522,0.00011,2]
[335859071,1724536243186,-397.325,0.00011,2]
[335859072,1724536243198,-795.53578029,0.00011,2]
[335859073,1724536243209,-4626.59156538,0.00011,2]
[335859074,1724536243220,-1581.58568819,0.00011,2]
[335859077,1724536243234,-2336.89922027,0.00011,2]
[335859087,1724536243349,-309.93135448,0.00011,2]
[335859088,1724536243360,-38710.46975587,0.00011,2]
[335859089,1724536243372,-2982.26387727,0.00011,2]
[335859090,1724536243383,-571.571,0.00011,2]
[335859091,1724536243394,-10992.66936184,0.00011,2]
[335859092,1724536243405,-7764.0017081,0.00011,2]
[335859093,1724536243416,-529.685291,0.00011,2]
[335859094,1724536243427,-14038.9224587,0.00011,2]
[335859095,1724536243439,-2934.77971038,0.00011,2]
[335859096,1724536243458,-993.12736041,0.00011,2]
[335859097,1724536243469,-338.33948636,0.00011,2]
[335859098,1724536243480,-2765.50224004,0.00011,2]
[335859099,1724536243491,-754.9399989,0.00011,2]
[335859100,1724536243503,-661.3131406,0.00011,2]
[335859101,1724536243514,-484.33001,0.00011,2]
[335859102,1724536243526,-529.46944493,0.00011,2]
[335859103,1724536243536,-521.31163644,0.00011,2]
[335859104,1724536243547,-684.93719709,0.00011,2]
[335859105,1724536243559,-1516.6,0.00011,2]
[335859106,1724536243570,-7440.45079688,0.00011,2]
[335859107,1724536243580,-1000.0,0.00011,2]
[335859108,1724536243591,-2447.60779868,0.00011,2]
[335859109,1724536243602,-3265.01060924,0.00011,2]
[335859110,1724536243614,-305.67881732,0.00011,2]
[335859111,1724536243625,-674.16794245,0.00011,2]
[335859112,1724536243636,-10657.64146005,0.00011,2]
[335859113,1724536243647,-311.7686698,0.00011,2]
[335859114,1724536243658,-5503.0,0.00011,2]
[335859115,1724536243669,-6679.72932,0.00011,2]
[335859116,1724536243681,-463.3999995,0.00011,2]
[335859117,1724536243692,-1082.91734936,0.00011,2]
[335859118,1724536243703,-6644.55524363,0.00011,2]
[335859120,1724536243718,-697.23822464,0.00011,2]
[335859122,1724536243729,-340.68338463,0.00011,2]
[335859124,1724536243741,-444.24779552,0.00011,2]
[335859126,1724536246247,-607.0,0.00011,2]
[335859127,1724536246257,-9794.00682633,0.00011,2]
[335859128,1724536246308,-1006.8,0.00011,2]
[335859129,1724536246375,-1529.47956354,0.00011,2]
[335859130,1724536246387,-832.13,0.00011,2]
[335859131,1724536246399,-508.07079341,0.00011,2]
[335859132,1724536246438,-1326.68,0.00011,2]
[335859133,1724536246449,-310.75725806,0.00011,2]
[335859134,1724536246461,-1417.56443875,0.00011,2]
[335859135,1724536246472,-660.54195458,0.00011,2]
[335859136,1724536246557,-528.61594051,0.00011,2]
[335859137,1724536246569,-4417.52516995,0.00011,2]
[335859138,1724536246581,-907.5,0.00011,2]
[335859139,1724536246594,-3614.48,0.00011,2]
[335859140,1724536246620,-30239.88879568,0.00011,2]
[335859141,1724536246634,-568.72966292,0.00011,2]
[335859143,1724536273181,150.5,0.000178,120]
[335859144,1724536273630,150.5,0.0001779,120]
[335859145,1724536273921,605.0,0.000178,120]
[335859146,1724536274085,150.5,0.0001778,120]
[335859147,1724536274372,605.0,0.0001779,120]
[335859148,1724536274530,150.5,0.000178,120]
[335859149,1724536274835,605.0,0.0001778,120]
[335859150,1724536275013,150.5,0.0001779,120]
[335859151,1724536275435,150.5,0.0001778,120]
[335859152,1724536275474,605.0,0.000178,120]
[335859153,1724536275892,202.58,0.000178,120]
[335859154,1724536275931,605.0,0.0001779,120]
[335859155,1724536276395,605.0,0.0001778,120]
[335859156,1724536276838,605.0,0.000178,120]
[335859157,1724536277484,605.0,0.0001779,120]
[335859158,1724536277937,605.0,0.000178,120]
[335859159,1724536278439,607.82,0.0001779,120]
[335859162,1724536480968,260.87,8.582e-05,2]
[335859163,1724536520925,1500.0,8.582e-05,2]
[335859169,1724536681774,3252.98670935,0.00010009,2]
[335859173,1724536978210,263.91,8.219e-05,2]
[335859174,1724537055810,264.6397361,9.962e-05,2]
[335859176,1724537137856,200.0,9.714e-05,2]
[335859189,1724537264865,181.69711588,9.665e-05,2]
[335859194,1724537350851,9275.57361174,0.00010009,2]
[335859214,1724537431647,-218.43,0.00010015,2]
[335859215,1724537431658,-196.95172,0.00010026,2]
[335859216,1724537431668,-300.0,0.00010034,2]
[335859217,1724537431678,-718.98239212,0.00010035,2]
[335859218,1724537431689,-10100.85760788,0.00010035,2]
[335859219,1724537431699,-431.91578682,0.00010097,2]
[335859220,1724537431710,-687.7799413,0.00010097,2]
[335859221,1724537431720,-324.24499998,0.00010379,2]
[335859222,1724537431730,-330.24732685,0.00010471,2]
[335859223,1724537431740,-293.68354989,0.00010471,2]
[335859224,1724537431750,-75.24457675,0.0001048,2]
[335859225,1724537431770,-188.66542325,0.0001048,2]
[335859226,1724537431780,-250.12,0.00010494,2]
[335859227,1724537431790,-207.021857,0.00010566,2]
[335859228,1724537431801,-155.0,0.00010566,2]
[335859229,1724537431811,-155.0,0.00010699,2]
[335859230,1724537431821,-2585.225,0.00010821,2]
[335859231,1724537431831,-375.36915227,0.00010888,2]
[335859232,1724537431842,-222.0,0.0001089,2]
[335859233,1724537431852,-155.0,0.0001089,2]
[335859234,1724537431862,-2365.0817,0.00010899,2]
[335859235,1724537431872,-150.0,0.00010899,2]
[335859236,1724537431882,-2500.0,0.000109,2]
[335859237,1724537431892,-523.8009413,0.000109,2]
[335859239,1724537431901,-523.80094129,0.000109,2]
[335859241,1724537431912,-33534.62081667,0.000109,2]
[335859242,1724537431921,-356.95,0.000109,2]
[335859245,1724537431931,-641.45761969,0.000109,2]
[335859246,1724537431941,-356.95,0.000109,2]
[335859247,1724537431950,-1544.0,0.0001092,2]
[335859248,1724537431960,-315.251,0.0001092,2]
[335859249,1724537431970,-225.29776367,0.0001092,2]
[335859252,1724537437557,-822.89522035,0.000109,2]
[335859253,1724537437566,-213.44052631,0.0001092,2]
[335859254,1724537437720,-814.26171002,0.0001092,2]
[335859255,1724537437729,-150.0,0.0001092,2]
[335859256,1724537437738,-1138.0,0.0001092,2]
[335859257,1724537437747,-809.0,0.0001092,2]
[335859258,1724537437757,-447.0,0.0001092,2]